bitfinex/quotes_SOLUSD_20250830
["timestamp","ask_amount","ask_price","bid_price","bid_amount"]
[1756521529219,9.62305803,203.56,203.5,4.71047828]
[1756521529425,9.62305803,203.56,203.52,0.67]
[1756521532422,4.71047828,203.55,203.52,0.67]
[1756521534823,4.71047828,203.55,203.5,4.71047828]
[1756521535015,4.71047828,203.56,203.51,0.67]
[1756521535210,0.06,203.55,203.52,0.67]
[1756521535624,0.06,203.55,203.5,4.71047828]
[1756521535829,0.06,203.55,203.51,0.67]
[1756521536029,0.06,203.55,203.5,4.71047828]
[1756521536030,0.06,203.55,203.52,0.67]
[1756521536727,0.06,203.55,203.53,0.67]
[1756521538416,4.71047828,203.54,203.5,0.67]
[1756521538627,4.71047828,203.53,203.5,0.67]
[1756521538823,0.06,203.55,203.5,0.67]
[1756521539035,4.71047828,203.53,203.51,0.67]
[1756521539329,4.71047828,203.54,203.51,0.67]
[1756521540044,4.77047828,203.55,203.49,4.71047828]
[1756521540234,0.06,203.55,203.52,0.67]
[1756521540535,0.06,203.55,203.51,4.71047828]
[1756521540738,0.06,203.55,203.53,0.67]
[1756521540928,4.77047828,203.55,203.52,0.7]
[1756521542428,4.71047828,203.54,203.5,0.7]
[1756521542631,4.77047828,203.55,203.51,0.7]
[1756521542826,0.06,203.55,203.52,0.7]
[1756521543308,0.06,203.55,203.53,0.7]
[1756521544115,0.06,203.55,203.51,0.7]
[1756521544410,4.71047828,203.54,203.51,0.7]
[1756521544609,9.68339313,203.55,203.49,4.71047828]
[1756521544941,9.68339313,203.55,203.51,0.7]
[1756521545242,9.68339313,203.55,203.52,0.7]
[1756521545534,4.77047828,203.55,203.52,0.7]
[1756521545743,4.77047828,203.55,203.5,5.41047828]
[1756521545917,4.77047828,203.55,203.51,0.7]
[1756521546529,9.68328868,203.55,203.51,0.7]
[1756521546729,4.71047828,203.54,203.51,0.7]
[1756521547516,4.9728104,203.55,203.49,4.71047828]
[1756521547517,0.06,203.55,203.53,4.71047828]
[1756521547735,0.06,203.55,203.54,5.41047828]
[1756521549342,0.06,203.55,203.54,0.7]
[1756521550724,0.06,203.55,203.54,5.41047828]
[1756521551255,0.06,203.55,203.54,0.7]
[1756521552038,0.06,203.55,203.54,5.41047828]
[1756521560120,0.06,203.55,203.54,4.71047828]
[1756521560444,5.14047828,203.55,203.5,4.71047828]
[1756521560748,10.05332063,203.55,203.49,5.41047828]
[1756521561135,10.05332063,203.55,203.5,0.7]
[1756521561453,4.71047828,203.54,203.51,0.7]
[1756521561621,9.68332063,203.55,203.51,0.7]
[1756521562053,0.06,203.55,203.52,0.7]
[1756521564270,0.06,203.55,203.51,4.71047828]
[1756521564271,0.06,203.55,203.54,4.71047828]
[1756521564639,0.06,203.55,203.54,5.41047828]
[1756521565438,0.06,203.55,203.53,4.71047828]
[1756521565963,0.06,203.55,203.54,0.7]
[1756521567458,0.06,203.55,203.54,10.32351748]
[1756521567763,0.06,203.55,203.54,0.7]
[1756521569690,0.06,203.55,203.54,5.41047828]
[1756521573172,0.06,203.55,203.54,0.7]
[1756521576090,0.06,203.55,203.52,0.66]
[1756521576375,0.06,203.55,203.5,69.15047828]
[1756521576543,0.06,203.55,203.53,0.66]
[1756521576969,0.06,203.55,203.54,0.66]
[1756521578456,0.06,203.55,203.54,5.37047828]
[1756521578753,0.06,203.55,203.54,0.66]
[1756521579143,0.06,203.58,203.54,48.70351748]
[1756521579349,0.06,203.58,203.57,30.71047828]
[1756521579856,0.06,203.58,203.55,43.19047828]
[1756521580575,0.06,203.58,203.55,43.85047828]
[1756521580872,0.06,203.58,203.55,48.76313889]
[1756521581069,0.06,203.58,203.55,44.05266061]
[1756521581660,0.06,203.58,203.55,48.76313889]
[1756521581856,0.06,203.58,203.56,5.57237564]
[1756521582051,0.06,203.58,203.56,10.28285392]
[1756521582451,0.06,203.58,203.56,9.62285392]
[1756521582652,0.06,203.58,203.57,0.66]
[1756521585257,0.06,203.58,203.55,43.39276649]
[1756521585976,0.06,203.58,203.56,0.66]
[1756521586681,0.06,203.58,203.56,5.57255148]
[1756521587775,0.06,203.58,203.56,10.28302976]
[1756521587981,0.06,203.58,203.57,0.66]
[1756521590229,0.06,203.58,203.55,43.19047828]
[1756521590374,4.71047828,203.56,203.51,0.66]
[1756521590575,4.71047828,203.55,203.51,0.66]
[1756521591455,4.71047828,203.52,203.47,0.03]
[1756521591680,4.71047828,203.5,203.47,0.03]
[1756521591867,4.71047828,203.49,203.47,0.03]
[1756521592272,5.14047828,203.48,203.47,0.03]
[1756521593867,18.73607229,203.48,203.47,0.03]
[1756521597398,23.6505602,203.48,203.47,0.03]
[1756521598175,18.73607229,203.48,203.47,0.03]
[1756521598383,56.74607229,203.48,203.47,0.03]
[1756521599084,57.17607229,203.48,203.47,0.03]
[1756521599604,62.1305602,203.48,203.47,0.03]
[1756521603381,23.6505602,203.48,203.47,0.03]
[1756521603589,61.7005602,203.48,203.47,0.03]
[1756521604188,56.76607229,203.48,203.47,0.03]
[1756521604407,18.30607229,203.48,203.47,0.03]
[1756521604606,56.76607229,203.48,203.47,0.03]
[1756521605812,12.28140871,203.56,203.47,0.72]
[1756521605983,4.71047828,203.48,203.47,0.72]
[1756521607007,13.59559401,203.52,203.47,5.63472944]
[1756521607213,4.71047828,203.5,203.48,0.69]
[1756521607507,4.71047828,203.5,203.49,0.69]
[1756521609194,13.59559401,203.53,203.49,0.69]
[1756521609402,4.71047828,203.5,203.49,0.69]
[1756521609693,4.71047828,203.5,203.48,4.91448653]
[1756521610097,4.71047828,203.53,203.49,0.69]
[1756521610815,131.6,203.54,203.49,0.69]
[1756521611017,4.71047828,203.53,203.49,0.69]
[1756521611311,131.6,203.54,203.5,4.91400491]
[1756521611496,4.71047828,203.53,203.51,0.69]
[1756521611816,136.31047828,203.54,203.52,0.69]
[1756521612114,4.71047828,203.53,203.52,0.69]
[1756521612316,136.31047828,203.54,203.52,0.69]
[1756521613986,131.6,203.54,203.52,0.69]
[1756521614392,131.6,203.54,203.52,5.6035162]
[1756521615117,131.6,203.54,203.52,0.69]
[1756521615310,136.31047828,203.54,203.52,0.69]
[1756521616317,136.31047828,203.54,203.53,0.69]
[1756521616620,131.6,203.54,203.53,0.69]
[1756521617006,136.31047828,203.54,203.49,9.62472468]
[1756521617322,4.71047828,203.51,203.49,0.69]
[1756521617812,4.71047828,203.52,203.5,0.69]
[1756521618707,4.71047828,203.52,203.51,0.69]
[1756521620239,131.6,203.54,203.51,5.60373876]
[1756521620422,0.06,203.55,203.51,5.60373876]
[1756521620631,0.06,203.55,203.52,5.40047828]
[1756521620795,0.06,203.55,203.53,4.71047828]
[1756521620997,0.06,203.55,203.53,5.40047828]
[1756521621305,0.06,203.55,203.54,5.40047828]
[1756521622524,0.06,203.55,203.54,10.31351748]
[1756521623309,0.06,203.55,203.54,5.6030392]
[1756521624710,0.06,203.55,203.54,10.31351748]
[1756521628607,0.06,203.55,203.54,5.6030392]
[1756521634130,0.06,203.55,203.54,10.31351748]
[1756521636434,0.06,203.55,203.54,10.34351748]
[1756521636809,0.06,203.55,203.54,15.11399648]
[1756521637325,0.06,203.55,203.54,10.34351748]
[1756521643431,0.06,203.55,203.54,12.31206948]
[1756521644235,0.06,203.55,203.54,7.6015912]
[1756521644538,18.79607229,203.55,203.54,0.03]
[1756521644741,57.21607229,203.55,203.54,0.03]
[1756521645228,64.09829512,203.55,203.54,0.03]
[1756521645615,62.12887012,203.55,203.54,0.03]
[1756521648243,23.70887012,203.55,203.54,0.03]
[1756521648444,62.12887012,203.55,203.54,0.03]
[1756521648641,23.70887012,203.55,203.54,0.03]
[1756521648819,62.12887012,203.55,203.54,0.03]
[1756521649740,56.78607229,203.55,203.54,0.03]
[1756521650256,62.12887012,203.55,203.54,0.03]
[1756521650944,62.12887012,203.55,203.51,0.03]
[1756521650945,39.59559401,203.52,203.51,0.03]
[1756521651262,13.59559401,203.49,203.47,0.03]
[1756521651545,82.72607229,203.48,203.47,0.03]
[1756521651753,83.15607229,203.48,203.47,0.03]
[1756521651919,85.12627329,203.48,203.47,0.03]
[1756521652426,90.0407612,203.48,203.47,0.03]
[1756521653344,26.0,203.45,203.44,0.03]
[1756521653523,69.13047828,203.45,203.44,0.03]
[1756521653723,69.56047828,203.45,203.44,0.03]
[1756521654335,74.47569086,203.45,203.44,0.03]
[1756521655343,88.07128487,203.45,203.44,0.03]
[1756521655554,13.59559401,203.44,203.37,0.68]
[1756521655722,88.07128487,203.45,203.37,0.68]
[1756521655723,56.72607229,203.43,203.37,0.68]
[1756521655922,57.15607229,203.43,203.37,0.68]
[1756521656344,52.44559401,203.43,203.37,0.68]
[1756521656531,52.44559401,203.43,203.41,0.03]
[1756521656532,56.72607229,203.43,203.41,0.03]
[1756521657557,23.6517681,203.43,203.41,0.03]
[1756521657848,62.0717681,203.43,203.41,0.03]
[1756521658651,61.6417681,203.43,203.41,0.03]
[1756521658846,62.0717681,203.43,203.41,0.03]
[1756521661255,61.6417681,203.43,203.41,0.03]
[1756521663239,62.0717681,203.43,203.41,0.03]
[1756521663738,13.59559401,203.42,203.41,0.03]
[1756521663926,39.59559401,203.4,203.39,0.03]
[1756521664133,87.45655057,203.4,203.39,0.03]
[1756521664326,87.88655057,203.4,203.39,0.03]
[1756521664761,89.85762457,203.4,203.39,0.03]
[1756521664962,13.59559401,203.39,203.35,0.03]
[1756521665158,23.22346017,203.36,203.35,0.03]
[1756521665358,61.66346017,203.36,203.35,0.03]
[1756521665665,64.06482617,203.36,203.35,0.03]
[1756521665850,63.63482617,203.36,203.35,0.03]
[1756521666253,25.19482617,203.36,203.35,0.03]
[1756521666464,61.66346017,203.36,203.35,0.03]
[1756521668057,23.22346017,203.36,203.35,0.03]
[1756521668263,61.66346017,203.36,203.35,0.03]
[1756521671056,62.09346017,203.36,203.35,0.03]
[1756521671562,61.66346017,203.36,203.35,0.03]
[1756521671976,62.09346017,203.36,203.35,0.03]
[1756521672638,39.59559401,203.33,203.32,0.03]
[1756521672841,82.74607229,203.33,203.32,0.03]
[1756521673143,83.17607229,203.33,203.32,0.03]
[1756521673360,87.88655057,203.33,203.32,0.03]
[1756521673659,83.17607229,203.33,203.32,0.03]
[1756521674037,88.0941857,203.33,203.32,0.03]
[1756521674564,92.80466398,203.33,203.32,0.03]
[1756521677949,87.6641857,203.33,203.32,0.03]
[1756521679159,92.37466398,203.33,203.32,0.03]
[1756521681553,92.80466398,203.33,203.3,0.2]
[1756521681797,26.0,203.28,203.26,0.2]
[1756521682084,61.6656374,203.27,203.26,0.2]
[1756521686467,61.6656374,203.27,203.25,0.03]
[1756521686663,44.30607229,203.26,203.25,0.03]
[1756521686867,82.74607229,203.26,203.25,0.03]
[1756521688178,87.66587943,203.26,203.25,0.03]
[1756521688681,39.59559401,203.22,203.21,0.2]
[1756521688860,82.74607229,203.22,203.21,0.2]
[1756521689180,82.74607229,203.22,203.21,0.89]
[1756521690360,87.6668478,203.22,203.21,0.89]
[1756521690572,87.6668478,203.22,203.21,0.2]
[1756521690772,87.6668478,203.22,203.21,0.89]
[1756521694480,87.6668478,203.22,203.21,0.2]
[1756521694481,49.2268478,203.22,203.21,0.2]
[1756521694683,87.6668478,203.22,203.21,0.2]
[1756521695304,49.2268478,203.22,203.21,0.2]
[1756521695485,87.6668478,203.22,203.21,0.2]
[1756521695760,92.37732608,203.22,203.21,0.2]
[1756521697570,44.51636952,203.22,203.21,0.86]
[1756521697793,78.03559401,203.22,203.21,0.86]
[1756521698087,82.74607229,203.22,203.21,0.86]
[1756521700564,38.44,203.22,203.21,0.86]
[1756521701685,56.74607229,203.22,203.21,0.86]
[1756521701990,56.74607229,203.22,203.21,0.2]
[1756521702185,56.74607229,203.22,203.21,0.86]
[1756521702676,19.47047828,203.3,203.21,0.86]
[1756521702677,38.44,203.28,203.21,5.57047828]
[1756521702878,38.44,203.27,203.23,4.71047828]
[1756521703077,43.15047828,203.26,203.24,0.66]
[1756521703274,43.15047828,203.26,203.25,0.66]
[1756521703479,38.44,203.26,203.25,0.66]
[1756521705189,13.59559401,203.27,203.25,0.66]
[1756521705384,52.03559401,203.26,203.25,0.66]
[1756521705581,56.74607229,203.26,203.25,0.66]
[1756521705777,13.59559401,203.25,203.22,0.66]
[1756521705978,43.15047828,203.24,203.23,0.66]
[1756521706284,43.15047828,203.24,203.21,0.86]
[1756521706489,43.15047828,203.24,203.22,0.66]
[1756521706673,52.03559401,203.24,203.23,0.66]
[1756521707197,56.74607229,203.24,203.23,0.66]
[1756521707502,52.03559401,203.24,203.23,0.66]
[1756521708067,38.44,203.24,203.23,0.66]
[1756521708282,38.44,203.25,203.23,0.66]
[1756521708874,38.5,203.25,203.23,0.66]
[1756521709974,38.5,203.25,203.21,9.83148852]
[1756521710280,38.5,203.25,203.22,0.66]
[1756521710994,0.06,203.25,203.22,5.58076961]
[1756521711301,0.06,203.25,203.24,4.71047828]
[1756521711796,0.06,203.25,203.24,5.37047828]
[1756521712193,0.06,203.25,203.24,0.66]
[1756521714680,0.06,203.25,203.24,0.16]
[1756521718001,0.06,203.25,203.22,4.71047828]
[1756521718002,0.06,203.25,203.22,9.29119329]
[1756521719913,0.06,203.25,203.23,0.66]
[1756521720403,0.06,203.25,203.24,4.71047828]
[1756521720789,0.06,203.25,203.24,31.41047828]
[1756521721303,0.06,203.25,203.24,36.33076956]
[1756521724476,0.06,203.25,203.24,31.62029128]
[1756521724703,0.06,203.25,203.24,36.33076956]
[1756521726301,0.06,203.33,203.24,52.54510699]
[1756521726511,0.06,203.33,203.28,26.0]
[1756521726713,0.06,203.33,203.32,4.71047828]
[1756521727210,0.06,203.33,203.32,0.7]
[1756521727399,0.06,203.33,203.32,2.670783]
[1756521727602,13.59559401,203.4,203.32,2.670783]
[1756521727603,0.1,203.46,203.35,26.0]
[1756521727816,0.1,203.46,203.39,26.0]
[1756521727983,4.81047828,203.46,203.39,26.0]
[1756521728185,0.78,203.46,203.43,26.0]
[1756521728403,0.78,203.46,203.43,30.71047828]
[1756521728584,0.1,203.46,203.43,30.71047828]
[1756521728786,0.1,203.46,203.43,31.41047828]
[1756521729109,0.1,203.46,203.43,33.38019428]
[1756521730189,0.1,203.46,203.43,38.29589009]
[1756521732013,0.78,203.46,203.43,6.68019428]
[1756521732587,0.78,203.46,203.43,12.29589009]
[1756521732588,0.1,203.46,203.43,12.29589009]
[1756521733507,0.1,203.46,203.43,7.58541181]
[1756521733725,0.1,203.46,203.43,12.29589009]
[1756521735283,0.1,203.46,203.43,11.59589009]
[1756521735490,0.1,203.46,203.43,37.59589009]
[1756521737019,0.74,203.44,203.41,4.71047828]
[1756521737213,0.74,203.44,203.4,4.71047828]
[1756521737515,0.68,203.43,203.4,4.71047828]
[1756521737701,0.06,203.44,203.4,4.71047828]
[1756521737894,0.68,203.43,203.41,4.710478]
[1756521740020,0.06,203.44,203.41,4.710478]
[1756521740220,0.68,203.43,203.41,4.710478]
[1756521741996,0.06,203.44,203.41,14.3371082]
[1756521742195,0.74,203.44,203.41,14.3371082]
[1756521742701,0.06,203.44,203.42,4.71047828]
[1756521743319,0.06,203.44,203.41,9.62662992]
[1756521743508,0.06,203.44,203.42,4.71047828]
[1756521744312,0.06,203.44,203.42,9.62630345]
[1756521744609,0.06,203.44,203.43,4.71047828]
[1756521744808,0.06,203.44,203.43,5.41047828]
[1756521745121,0.06,203.44,203.43,10.18095628]
[1756521746022,0.06,203.44,203.43,14.39665209]
[1756521746422,0.06,203.44,203.43,15.09665209]
[1756521748624,0.06,203.44,203.43,14.39665209]
[1756521751516,0.06,203.44,203.43,15.10665209]
[1756521755729,0.06,203.44,203.43,14.39665209]
[1756521756737,0.06,203.44,203.43,15.10665209]
[1756521757850,0.06,203.44,203.43,14.39665209]
[1756521762342,0.06,203.44,203.43,15.10665209]
[1756521762655,0.78,203.44,203.43,48.06617381]
[1756521763639,0.78,203.44,203.43,52.77665209]
[1756521764318,0.06,203.44,203.43,52.77665209]
[1756521767723,0.06,203.44,203.43,4.770478]
[1756521767724,0.78,203.44,203.43,4.770478]
[1756521767941,0.78,203.44,203.42,38.38]
[1756521768248,0.72,203.43,203.42,38.38]
[1756521768650,0.06,203.44,203.42,48.00641574]
[1756521768953,0.78,203.44,203.42,48.00641574]
[1756521769151,0.78,203.44,203.42,9.62641574]
[1756521769356,0.78,203.44,203.42,14.33689374]
[1756521770225,0.78,203.44,203.42,9.62641546]
[1756521772029,0.78,203.44,203.42,4.91593746]
[1756521772224,0.78,203.44,203.43,4.810478]
[1756521772630,0.78,203.44,203.42,4.91593746]
[1756521772840,0.78,203.44,203.42,9.72641546]
[1756521773457,0.78,203.44,203.42,4.91593746]
[1756521773752,0.78,203.44,203.42,9.72641546]
[1756521774126,0.78,203.44,203.42,4.91593746]
[1756521774330,0.78,203.44,203.43,43.09047828]
[1756521774331,0.06,203.44,203.43,43.09047828]
[1756521774550,0.06,203.44,203.43,47.90095628]
[1756521775430,0.06,203.44,203.43,52.81665209]
[1756521775647,0.78,203.44,203.42,38.38]
[1756521775962,0.72,203.43,203.42,40.34991]
[1756521777248,0.72,203.43,203.42,38.38]
[1756521777845,0.06,203.44,203.42,43.29593746]
[1756521778043,0.78,203.44,203.42,43.29593746]
[1756521780402,0.06,203.44,203.42,48.71641574]
[1756521780538,0.06,203.44,203.43,5.42047828]
[1756521780744,0.06,203.44,203.43,10.23095628]
[1756521781666,0.06,203.44,203.43,15.14665209]
[1756521783270,1e-08,203.49,203.48,26.0]
[1756521783468,1e-08,203.49,203.48,44.30192707]
[1756521783676,1e-08,203.49,203.48,53.92689326]
[1756521784175,1e-08,203.49,203.48,46.4746827]
[1756521784375,1e-08,203.49,203.48,55.89563926]
[1756521787384,1e-08,203.49,203.48,51.18516098]
[1756521787570,1e-08,203.49,203.48,50.69371219]
[1756521788076,1e-08,203.49,203.48,49.97371219]
[1756521788384,1e-08,203.49,203.48,48.00496619]
[1756521789283,1e-08,203.49,203.48,49.97390619]
[1756521790675,1e-08,203.49,203.48,48.00496619]
[1756521790971,0.67000001,203.49,203.47,1.96894]
[1756521791168,5.38047828,203.48,203.39,12.29109685]
[1756521791359,0.67,203.47,203.43,4.71047828]
[1756521791560,1e-08,203.49,203.44,43.07047828]
[1756521791561,0.67,203.46,203.44,43.07047828]
[1756521791777,0.67,203.45,203.44,38.36]
[1756521791978,0.67,203.45,203.39,17.72157585]
[1756521791979,0.67,203.45,203.4,4.91642084]
[1756521792278,0.67,203.44,203.42,4.71047828]
[1756521792466,0.67,203.44,203.43,43.07047828]
[1756521792901,4.71047828,203.48,203.43,43.07047828]
[1756521793090,0.67,203.47,203.46,4.71047828]
[1756521793381,0.67,203.47,203.45,38.36]
[1756521793589,0.67,203.46,203.42,4.71047828]
[1756521793769,0.67,203.45,203.44,38.36]
[1756521794996,0.67,203.45,203.42,9.62629678]
[1756521795192,4.71047828,203.47,203.44,38.36]
[1756521795360,13.59559402,203.49,203.44,38.36]
[1756521795562,4.71047828,203.48,203.44,38.36]
[1756521795790,5.38047828,203.48,203.44,38.36]
[1756521795970,4.71047828,203.48,203.44,38.36]
[1756521796169,0.67,203.47,203.44,38.36]
[1756521796369,0.67,203.46,203.44,38.36]
[1756521796583,0.67,203.45,203.43,38.36]
[1756521796794,5.38047828,203.44,203.38,4.94688906]
[1756521796964,5.38047828,203.44,203.39,38.36]
[1756521796965,0.67,203.43,203.39,38.36]
[1756521797165,0.67,203.42,203.39,38.36]
[1756521797467,0.67,203.41,203.39,38.36]
[1756521797865,0.67,203.41,203.39,47.98694454]
[1756521798064,0.67,203.43,203.39,43.27646626]
[1756521798263,0.67,203.42,203.4,4.71047828]
[1756521798479,0.67,203.42,203.41,38.38]
[1756521799784,0.67,203.42,203.39,4.71047828]
[1756521799985,0.67,203.41,203.4,38.38]
[1756521801370,4.71047828,203.44,203.4,38.38]
[1756521801565,0.67,203.43,203.4,38.38]
[1756521801764,0.67,203.42,203.4,38.38]
[1756521802381,4.71047828,203.44,203.4,38.38]
[1756521802581,0.67,203.41,203.4,38.38]
[1756521802889,0.67,203.41,203.38,4.94683955]
[1756521802890,0.67,203.41,203.39,38.38]
[1756521803076,0.67,203.4,203.39,38.38]
[1756521803869,0.67,203.42,203.39,38.38]
[1756521804071,0.67,203.41,203.39,38.38]
[1756521804272,0.67,203.44,203.4,4.71047828]
[1756521804471,0.67,203.47,203.43,4.71047828]
[1756521804677,0.67,203.46,203.43,43.09047828]
[1756521804881,0.67,203.45,203.43,38.38]
[1756521805191,0.67,203.44,203.43,38.38]
[1756521805496,0.67,203.46,203.43,38.38]
[1756521805792,0.67,203.45,203.43,38.38]
[1756521807379,0.67,203.45,203.43,43.09047828]
[1756521807987,0.67,203.45,203.43,38.38]
[1756521808890,0.67,203.48,203.43,48.00609618]
[1756521809090,1e-08,203.49,203.45,4.71047828]
[1756521809393,0.67,203.48,203.45,43.09047828]
[1756521810192,1e-08,203.49,203.46,4.71047828]
[1756521810895,0.67000001,203.49,203.46,4.71047828]
[1756521811600,0.67000001,203.49,203.46,9.62544774]
[1756521811895,1e-08,203.49,203.47,4.71047828]
[1756521812603,1e-08,203.49,203.46,4.91496946]
[1756521812900,1e-08,203.49,203.47,4.71047828]
[1756521813309,1e-08,203.49,203.46,4.91496946]
[1756521813513,1e-08,203.49,203.48,10.28496619]
[1756521814098,1e-08,203.49,203.46,38.38]
[1756521814314,1e-08,203.49,203.46,43.09047828]
[1756521814890,1e-08,203.49,203.46,43.75047828]
[1756521815294,1e-08,203.49,203.46,48.66536817]
[1756521816375,1e-08,203.49,203.48,4.71047828]
[1756521816575,1e-08,203.49,203.48,43.11047828]
[1756521816793,1e-08,203.49,203.46,4.71047828]
[1756521816993,0.7,203.48,203.47,38.44]
[1756521817193,0.7,203.48,203.46,38.44]
[1756521819483,5.41047828,203.47,203.39,4.71047828]
[1756521819683,4.71047828,203.45,203.39,43.15047828]
[1756521820007,4.71047828,203.45,203.4,4.71047828]
[1756521820180,5.41047828,203.45,203.4,4.71047828]
[1756521821400,5.41047828,203.45,203.43,0.03]
[1756521822084,0.7,203.44,203.43,0.03]
[1756521822587,5.41047828,203.44,203.43,0.03]
[1756521822913,19.00607229,203.44,203.43,0.03]
[1756521823491,23.92152647,203.44,203.43,0.03]
[1756521824781,19.00607229,203.44,203.43,0.03]
[1756521825794,23.92152647,203.44,203.43,0.03]
[1756521828706,13.59559401,203.42,203.41,0.03]
[1756521828917,61.45655057,203.42,203.41,0.03]
[1756521829085,62.15655057,203.42,203.38,0.03]
[1756521829409,44.30607229,203.39,203.38,0.03]
[1756521829799,45.00607229,203.39,203.38,0.03]
[1756521830685,83.44607229,203.39,203.38,0.03]
[1756521831498,18.30607229,203.39,203.38,0.03]
[1756521831688,4.71047828,203.4,203.38,0.03]
[1756521832899,4.71047828,203.39,203.38,0.03]
[1756521835602,4.71047828,203.4,203.38,0.03]
[1756521836016,5.41047828,203.4,203.38,0.03]
[1756521836411,4.71047828,203.4,203.38,0.03]
[1756521837116,131.6,203.41,203.38,4.74047828]
[1756521837321,131.6,203.41,203.39,0.66]
[1756521837931,131.6,203.41,203.38,0.03]
[1756521838297,131.6,203.41,203.38,0.69]
[1756521838814,131.6,203.41,203.38,5.40047828]
[1756521839922,131.6,203.41,203.38,10.31722602]
[1756521842503,131.6,203.41,203.38,9.65722602]
[1756521842701,131.6,203.41,203.38,10.30722602]
[1756521844430,131.6,203.41,203.39,4.71047828]
[1756521846013,131.6,203.41,203.39,9.62695175]
[1756521846215,0.68000001,203.49,203.4,10.07095656]
[1756521846418,0.68000001,203.49,203.48,4.71047828]
[1756521846419,1e-08,203.49,203.48,4.71047828]
[1756521846917,1e-08,203.49,203.48,5.36047828]
[1756521848228,1e-08,203.49,203.48,10.27496619]
[1756521851337,1e-08,203.49,203.48,15.47689326]
[1756521851925,1e-08,203.49,203.48,17.44563926]
[1756521852535,0.06,203.52,203.51,26.0]
[1756521852737,0.06,203.52,203.51,74.00424173]
[1756521853241,0.06,203.52,203.51,76.62289073]
[1756521853816,1e-08,203.52,203.51,50.62289073]
[1756521855239,1e-08,203.54,203.53,26.0]
[1756521855415,1e-08,203.54,203.53,31.20180633]
[1756521855621,1e-08,203.54,203.53,31.85180633]
[1756521856033,0.06,203.58,203.53,33.82006733]
[1756521856233,0.06,203.58,203.57,30.71047828]
[1756521856438,0.06,203.58,203.57,69.09047828]
[1756521857344,0.06,203.58,203.57,74.65279345]
[1756521859738,0.06,203.58,203.57,64.36]
[1756521860041,0.74,203.58,203.57,64.36]
[1756521861623,0.06,203.58,203.57,69.07047828]
[1756521861823,0.74,203.58,203.57,30.71047828]
[1756521862033,0.74,203.58,203.57,69.07047828]
[1756521862437,0.06,203.58,203.57,69.07047828]
[1756521862848,0.74,203.58,203.57,69.07047828]
[1756521863148,0.74,203.58,203.53,7.53163663]
[1756521863351,0.68,203.57,203.53,4.71047828]
[1756521863553,5.39047828,203.56,203.54,38.36]
[1756521863726,0.68,203.55,203.52,38.36]
[1756521863918,0.68,203.54,203.48,1.968843]
[1756521864234,0.68,203.53,203.49,4.71047828]
[1756521864431,0.68,203.52,203.5,38.38]
[1756521864647,0.68,203.51,203.5,38.38]
[1756521865164,0.68,203.51,203.49,4.71047828]
[1756521865462,0.68,203.51,203.5,38.36]
[1756521868322,0.68,203.51,203.49,26.0]
[1756521868519,0.68,203.51,203.5,38.36]
[1756521870136,0.68,203.51,203.49,26.0]
[1756521870336,0.68,203.51,203.5,38.36]
[1756521870938,5.37047828,203.53,203.5,38.36]
[1756521871140,0.66,203.52,203.5,38.36]
[1756521873654,0.66,203.52,203.5,38.39]
[1756521878051,0.06,203.58,203.51,5.41047828]